bitfinex-derivatives/quotes_BTCF0:USTF0_20250119
["timestamp","ask_amount","ask_price","bid_price","bid_amount"]
[1737329109667,0.049483,101190.0,101170.0,0.17880832]
[1737329109668,0.410283,101190.0,101170.0,0.17880832]
[1737329109867,0.3608,101190.0,101160.0,0.49011632]
[1737329110075,0.04949,101180.0,101160.0,0.53961332]
[1737329110671,0.04949,101180.0,101160.0,0.55508211]
[1737329110977,0.04949,101180.0,101170.0,0.3608]
[1737329111171,0.04949,101180.0,101160.0,0.55508211]
[1737329111373,0.410293,101170.0,101160.0,0.01546879]
[1737329111582,0.410293,101170.0,101150.0,0.23516149]
[1737329111583,0.049498,101160.0,101150.0,0.23516149]
[1737329111772,0.049508,101140.0,101130.0,0.34559789]
[1737329111973,0.410308,101140.0,101120.0,0.8779548]
[1737329112173,0.410308,101140.0,101110.0,0.51680781]
[1737329112174,0.410312,101130.0,101100.0,0.99308931]
[1737329112384,0.049522,101110.0,101100.0,0.50297299]
[1737329112681,0.049522,101110.0,101100.0,0.4935538]
[1737329113068,0.410322,101110.0,101100.0,0.01533905]
[1737329113376,0.049527,101100.0,101090.0,0.3779772]
[1737329113575,0.410327,101100.0,101090.0,0.3779772]
[1737329113770,0.049527,101100.0,101090.0,0.3779772]
[1737329113976,0.410323,101110.0,101090.0,0.4275092]
[1737329114178,0.410313,101130.0,101110.0,0.04952]
[1737329114372,0.410313,101130.0,101100.0,0.12931632]
[1737329114373,0.3608,101130.0,101100.0,0.12931632]
[1737329114578,0.049528,101100.0,101080.0,0.049536]
[1737329114981,0.3608,101090.0,101070.0,0.36092344]
[1737329115183,0.049537,101080.0,101070.0,0.00012344]
[1737329115381,0.049537,101080.0,101050.0,0.41183496]
[1737329115382,0.3608,101090.0,101050.0,0.36228396]
[1737329115577,0.04867809,101060.0,101040.0,0.29453409]
[1737329115782,0.049542,101070.0,101050.0,0.049551]
[1737329115980,0.04955,101060.0,101030.0,0.12931632]
[1737329116277,0.410352,101050.0,101030.0,0.17887632]
[1737329116479,0.3608,101040.0,101020.0,0.12931632]
[1737329116682,0.3608,101030.0,101010.0,0.34410409]
[1737329116980,0.3608,101040.0,101010.0,0.29453409]
[1737329117184,0.3608,101030.0,101010.0,0.34410509]
[1737329117383,0.3608,101040.0,101020.0,0.049565]
[1737329117776,0.41036,101040.0,101010.0,0.34410509]
[1737329118377,0.41036,101040.0,101010.0,0.410371]
[1737329118582,0.41035,101060.0,101030.0,0.04956]
[1737329119787,0.3608,101040.0,101020.0,0.06478729]
[1737329119984,0.410355,101050.0,101020.0,0.06478729]
[1737329120179,0.049557,101040.0,101020.0,0.06478729]
[1737329120383,0.410361,101030.0,101010.0,0.01522129]
[1737329120578,0.3608,101030.0,101010.0,0.50533761]
[1737329120792,0.53967132,101050.0,101020.0,0.049566]
[1737329120985,0.049555,101050.0,101030.0,0.049561]
[1737329121188,0.3608,101040.0,101010.0,0.37602129]
[1737329121380,0.049564,101030.0,101010.0,0.37602129]
[1737329121782,0.3608,101040.0,101010.0,0.01522129]
[1737329121983,0.049571,101010.0,101000.0,0.11532049]
[1737329122186,0.410371,101010.0,101000.0,0.11532049]
[1737329122383,0.53968732,101010.0,101000.0,0.11522129]
[1737329122578,0.53968732,101010.0,101000.0,0.1309926]
[1737329123083,0.049583,100990.0,100960.0,0.3608]
[1737329123278,0.3608,100990.0,100970.0,0.42557278]
[1737329123478,0.3608,101010.0,100980.0,0.49011632]
[1737329123685,0.3608,101010.0,100970.0,0.37598178]
[1737329123686,0.049565,101030.0,101000.0,0.53969032]
[1737329123883,0.3608,101040.0,101010.0,0.53968632]
[1737329124193,0.3608,101060.0,101030.0,0.49011632]
[1737329124391,0.814743,101070.0,101040.0,0.12931632]
[1737329124686,0.3608,101060.0,101040.0,0.049554]
[1737329124885,0.410348,101060.0,101040.0,0.01549425]
[1737329125080,0.7652,101070.0,101050.0,0.53966632]
[1737329125081,0.3608,101070.0,101050.0,0.53966632]
[1737329125286,0.16763915,101080.0,101070.0,0.049542]
[1737329125489,0.16763915,101080.0,101070.0,0.53965832]
[1737329126082,0.3608,101130.0,101090.0,0.049532]
[1737329126287,0.04952,101120.0,101090.0,0.17884832]
[1737329126487,0.410309,101140.0,101110.0,0.049519]
[1737329126691,0.410309,101140.0,101110.0,0.53963532]
[1737329127585,0.049509,101140.0,101110.0,0.53963532]
[1737329127785,0.049515,101130.0,101110.0,0.3608]
[1737329127992,0.049523,101110.0,101090.0,0.04953]
[1737329128195,0.410323,101110.0,101080.0,0.410337]
[1737329128385,0.53963232,101130.0,101080.0,0.53965332]
[1737329128698,0.410316,101130.0,101100.0,0.049526]
[1737329129082,0.410316,101130.0,101110.0,0.049522]
[1737329129795,0.04953,101100.0,101060.0,0.7786]
[1737329129987,0.41032,101120.0,101090.0,0.3608]
[1737329130189,0.04952,101120.0,101100.0,0.049527]
[1737329130584,0.410314,101130.0,101100.0,0.3608]
[1737329130895,0.410314,101130.0,101100.0,0.410326]
[1737329131090,0.410314,101130.0,101110.0,0.04952]
[1737329131283,0.3608,101140.0,101100.0,0.410323]
[1737329131484,0.410309,101140.0,101120.0,0.3608]
[1737329131684,0.410309,101140.0,101110.0,0.049522]
[1737329131890,0.049515,101130.0,101110.0,0.049522]
[1737329132194,0.3608,101120.0,101090.0,0.89316]
[1737329132495,0.410308,101140.0,101100.0,0.12931632]
[1737329132684,0.3608,101140.0,101120.0,0.3608]
[1737329132889,0.410308,101140.0,101110.0,0.410319]
[1737329133188,0.410308,101140.0,101120.0,0.049516]
[1737329135400,0.3608,101170.0,101130.0,0.12931632]
[1737329135694,0.7765,101180.0,101160.0,0.049496]
[1737329135695,0.049489,101180.0,101160.0,0.049496]
[1737329135901,0.7708,101190.0,101160.0,0.049496]
[1737329136091,0.410291,101180.0,101150.0,0.410302]
[1737329136291,0.049493,101170.0,101150.0,0.410302]
[1737329136492,0.3608,101180.0,101160.0,0.3608]
[1737329136704,0.510282,101200.0,101170.0,0.049491]
[1737329137393,0.510282,101200.0,101180.0,0.049487]
[1737329137595,0.4608,101200.0,101160.0,0.49011632]
[1737329137800,0.1,101200.0,101190.0,0.049483]
[1737329139301,0.149479,101200.0,101180.0,0.049486]
[1737329139492,0.510279,101200.0,101180.0,0.049486]
[1737329139892,0.510279,101200.0,101190.0,0.410283]
[1737329139893,0.1,101200.0,101190.0,0.410283]
[1737329143097,0.3608,101250.0,101190.0,0.410283]
[1737329143302,0.049462,101240.0,101220.0,0.049467]
[1737329143497,0.049462,101240.0,101210.0,0.3608]
[1737329143714,0.049478,101200.0,101190.0,0.410282]
[1737329143901,0.049478,101200.0,101180.0,0.49011632]
[1737329144105,0.3608,101220.0,101200.0,0.049478]
[1737329144401,0.049474,101210.0,101200.0,0.049477]
[1737329144797,0.049474,101210.0,101180.0,0.49011632]
[1737329144998,0.049474,101210.0,101190.0,0.049482]
[1737329145402,0.049483,101190.0,101180.0,0.33072291]
[1737329145703,0.049483,101190.0,101160.0,1.06173632]
[1737329145912,0.3608,101210.0,101180.0,0.049488]
[1737329146099,0.05898118,101220.0,101200.0,0.049478]
[1737329146301,0.05898118,101220.0,101200.0,0.410278]
[1737329146508,0.049473,101210.0,101200.0,0.410278]
[1737329146708,0.049473,101210.0,101200.0,0.3608]
[1737329147107,0.410273,101210.0,101180.0,0.12931632]
[1737329147411,0.410273,101210.0,101170.0,0.049492]
[1737329147412,0.049488,101180.0,101170.0,0.049492]
[1737329147601,0.3608,101190.0,101160.0,0.17881332]
[1737329147802,0.049499,101160.0,101150.0,0.049502]
[1737329148105,0.410294,101170.0,101150.0,0.049502]
[1737329149197,0.410285,101190.0,101170.0,0.049489]
[1737329149397,0.83918,101200.0,101180.0,0.049486]
[1737329149612,0.41028,101200.0,101180.0,0.049486]
[1737329149801,0.410283,101190.0,101170.0,0.049492]
[1737329150112,0.04949,101180.0,101160.0,0.049497]
[1737329150404,0.049493,101170.0,101160.0,0.049497]
[1737329151002,0.04949,101180.0,101160.0,0.049497]
[1737329151308,0.41029,101180.0,101160.0,0.049497]
[1737329151510,0.049497,101170.0,101150.0,0.049502]
[1737329151808,0.049497,101170.0,101150.0,0.049499]
[1737329152007,0.05890952,101180.0,101150.0,0.410299]
[1737329152206,0.00942052,101180.0,101170.0,0.049493]
[1737329152402,0.049488,101180.0,101170.0,0.049493]
[1737329152602,0.3608,101180.0,101160.0,0.049496]
[1737329152804,0.049489,101180.0,101160.0,0.049496]
[1737329153004,0.049489,101180.0,101160.0,0.09899]
[1737329153313,0.049489,101180.0,101170.0,0.049493]
[1737329153501,0.410289,101180.0,101150.0,0.3608]
[1737329153703,0.049503,101150.0,101140.0,0.410307]
[1737329153999,0.049508,101140.0,101120.0,0.00056]
[1737329154202,0.49011632,101140.0,101110.0,0.049521]
[1737329154413,0.049514,101130.0,101120.0,0.049517]
[1737329154610,0.049509,101140.0,101130.0,0.049512]
[1737329154810,0.410298,101160.0,101130.0,0.410311]
[1737329155007,0.410298,101160.0,101140.0,0.049503]
[1737329155212,0.410298,101160.0,101140.0,0.410303]
[1737329155719,0.410298,101160.0,101150.0,0.049503]
[1737329156012,0.459801,101160.0,101140.0,0.410306]
[1737329156213,0.049503,101150.0,101120.0,0.3608]
[1737329156510,0.410308,101140.0,101120.0,0.049516]
[1737329156705,0.049515,101130.0,101110.0,0.410321]
[1737329157011,0.049509,101140.0,101120.0,0.410317]
[1737329157208,0.00956128,101160.0,101150.0,0.049503]
[1737329157515,0.410284,101190.0,101170.0,0.049489]
[1737329157715,0.049488,101180.0,101150.0,0.49011632]
[1737329158015,0.049488,101180.0,101150.0,0.410301]
[1737329158016,0.049496,101170.0,101150.0,0.410301]
[1737329158219,0.13911592,101180.0,101170.0,0.049493]
[1737329158405,0.049493,101170.0,101160.0,0.049497]
[1737329158605,0.18860492,101180.0,101160.0,0.098991]
[1737329158908,0.18860492,101180.0,101170.0,0.049493]
[1737329158909,0.13911592,101180.0,101170.0,0.049493]
[1737329159109,0.13911592,101180.0,101170.0,0.410293]
[1737329159411,0.00956031,101190.0,101180.0,0.049488]
[1737329159620,0.049482,101200.0,101180.0,0.049488]
[1737329159910,0.049483,101190.0,101170.0,0.410287]
[1737329160110,0.049483,101190.0,101180.0,0.410283]
[1737329160312,0.049483,101190.0,101170.0,0.3608]
[1737329160508,0.049488,101170.0,101160.0,0.410292]
[1737329160710,0.049497,101160.0,101140.0,0.049502]
[1737329160910,0.049498,101150.0,101140.0,0.3608]
[1737329161311,0.049498,101150.0,101130.0,0.19198344]
[1737329161312,0.049503,101140.0,101130.0,0.19198344]
[1737329161514,0.049503,101140.0,101130.0,0.18948344]
[1737329161903,0.049503,101140.0,101120.0,0.049512]
[1737329162111,0.049512,101120.0,101110.0,0.00148311]
[1737329162309,0.049512,101120.0,101110.0,0.41180011]
[1737329162514,0.049512,101120.0,101110.0,0.00148311]
[1737329163212,0.410312,101120.0,101110.0,0.00148311]
[1737329163413,0.049512,101120.0,101110.0,0.00148311]
[1737329163618,0.410312,101120.0,101110.0,0.00148311]
[1737329164416,0.00985356,101140.0,101120.0,0.049511]
[1737329164609,0.049512,101120.0,101110.0,0.41180011]
[1737329164810,0.049509,101130.0,101110.0,0.41179611]
[1737329165016,0.049509,101130.0,101120.0,0.3608]
[1737329165208,0.049512,101120.0,101110.0,0.00148311]
[1737329166016,0.049512,101120.0,101110.0,0.36228311]
[1737329166407,0.049517,101110.0,101100.0,0.1]
[1737329167206,0.410317,101110.0,101100.0,0.1]
[1737329167719,0.17883332,101110.0,101100.0,0.1]
[1737329167927,0.049517,101110.0,101100.0,0.1]
[1737329168223,0.53963332,101110.0,101100.0,0.1]
[1737329168523,0.049522,101100.0,101090.0,9.617e-05]
[1737329170017,0.049519,101110.0,101090.0,0.41042017]
[1737329170223,0.049513,101120.0,101110.0,0.049517]
[1737329170714,0.049513,101120.0,101110.0,0.3608]
[1737329170908,0.049522,101100.0,101090.0,0.42369617]
[1737329171117,0.049522,101100.0,101090.0,9.617e-05]
[1737329171317,0.441904,101140.0,101120.0,0.049509]
[1737329171318,0.049503,101140.0,101120.0,0.049509]
[1737329171511,0.05911329,101140.0,101120.0,0.410312]
[1737329171713,0.10862029,101140.0,101120.0,0.410312]
[1737329171908,0.00961029,101140.0,101130.0,0.410307]
[1737329172116,0.1125205,101150.0,101140.0,0.049503]
[1737329172315,0.13911592,101160.0,101150.0,0.049498]
[1737329172511,0.16187598,101160.0,101150.0,0.049498]
[1737329172713,0.11238298,101160.0,101140.0,0.3608]
[1737329172914,0.13911592,101170.0,101150.0,0.53961432]
[1737329173113,0.16644424,101180.0,101160.0,0.410293]
[1737329173317,0.16644424,101180.0,101170.0,0.410288]
[1737329173919,0.21592724,101180.0,101170.0,0.410288]
[1737329174223,0.049483,101180.0,101170.0,0.410288]
[1737329174718,0.16644424,101230.0,101220.0,0.049463]
[1737329174915,0.16644424,101230.0,101220.0,0.90037932]
[1737329175120,0.41909788,101250.0,101240.0,0.049454]
[1737329175312,0.19557901,101250.0,101240.0,0.90037032]
[1737329175718,0.24502801,101250.0,101230.0,0.410258]
[1737329175916,0.049454,101240.0,101220.0,0.410261]
[1737329176218,0.410255,101240.0,101220.0,0.049463]
[1737329176418,0.049465,101220.0,101200.0,0.3608]
[1737329176612,0.049465,101220.0,101200.0,0.410271]
[1737329176817,0.049468,101210.0,101200.0,0.410271]
[1737329177215,0.049468,101210.0,101200.0,0.410273]
[1737329177410,0.049468,101210.0,101190.0,0.58670665]
[1737329178214,0.049465,101220.0,101200.0,0.41027]
[1737329178415,1.1785,101240.0,101220.0,0.049463]
[1737329178616,0.3608,101260.0,101230.0,0.049457]
[1737329178814,0.410245,101260.0,101240.0,0.3608]
[1737329179017,0.049445,101260.0,101240.0,0.410252]
[1737329179322,0.04945,101250.0,101230.0,0.049458]
[1737329179820,0.3705592,101260.0,101220.0,0.3608]
[1737329180025,0.049455,101240.0,101220.0,0.410259]
[1737329180212,0.3608,101240.0,101200.0,1.29783632]
[1737329180525,0.049459,101230.0,101210.0,0.410265]
[1737329180727,0.049463,101220.0,101200.0,0.410792]
[1737329180926,0.049468,101210.0,101190.0,0.410277]
[1737329181232,0.049478,101190.0,101180.0,0.410282]
[1737329181416,0.049478,101190.0,101180.0,0.3608]
[1737329181618,0.049481,101190.0,101170.0,0.41176927]
[1737329181818,0.410275,101200.0,101180.0,0.410281]
[1737329182023,0.049475,101200.0,101180.0,0.410281]
[1737329182224,0.3608,101230.0,101190.0,0.49011632]
[1737329182416,0.78602,101240.0,101200.0,0.49011632]
[1737329182620,0.410256,101240.0,101220.0,0.410262]
[1737329182830,0.049459,101230.0,101220.0,0.410262]
[1737329183016,0.049459,101230.0,101190.0,0.49011632]
[1737329183222,0.04947,101210.0,101190.0,0.410277]
[1737329183422,0.3608,101220.0,101190.0,0.049477]
[1737329183733,0.3608,101220.0,101200.0,0.3608]
[1737329183734,0.049464,101220.0,101200.0,0.3608]
[1737329183925,1.21539754,101240.0,101210.0,0.3608]
[1737329184128,0.00989754,101240.0,101230.0,0.410259]
[1737329184326,0.049445,101260.0,101240.0,0.049453]
[1737329184632,0.00953215,101260.0,101240.0,0.3608]
[1737329184818,0.41024,101270.0,101250.0,0.410249]
[1737329185019,0.00068,101280.0,101260.0,0.3608]
[1737329185322,0.049434,101280.0,101260.0,0.3608]
[1737329185528,0.049434,101280.0,101250.0,0.410246]
[1737329185529,0.049442,101270.0,101250.0,0.049448]
[1737329186123,0.410236,101280.0,101230.0,0.95137232]
[1737329186327,0.049437,101280.0,101270.0,0.3608]
[1737329186534,0.049437,101280.0,101270.0,0.049439]
[1737329186833,0.00985877,101290.0,101280.0,0.049434]
[1737329187022,0.1,101300.0,101270.0,0.49011632]
[1737329187224,0.049435,101280.0,101270.0,0.3608]
[1737329187421,0.5198686,101300.0,101260.0,0.7254]
[1737329187631,0.410231,101290.0,101270.0,0.410239]
[1737329187924,0.049434,101280.0,101270.0,0.3608]
[1737329188130,0.3608,101290.0,101260.0,0.7254]
[1737329188331,0.049439,101270.0,101260.0,0.7254]
[1737329188636,0.049439,101270.0,101260.0,0.774842]
[1737329188933,0.049435,101280.0,101260.0,0.774842]
[1737329189130,0.1096436,101300.0,101270.0,0.49011632]
[1737329189330,0.1096436,101300.0,101290.0,0.410229]
[1737329189637,0.049412,101330.0,101310.0,0.049417]
[1737329189942,0.49011632,101320.0,101280.0,0.3608]
[1737329190232,0.049428,101300.0,101280.0,0.53954932]
[1737329190534,0.049416,101320.0,101300.0,0.049421]
[1737329190736,0.0589839,101330.0,101300.0,0.3608]
[1737329191032,0.4197839,101330.0,101290.0,0.3608]
[1737329191225,0.049416,101320.0,101300.0,0.410223]
[1737329191524,0.049416,101320.0,101310.0,0.41022]
[1737329191722,0.049416,101320.0,101300.0,0.410224]
[1737329191925,0.04942,101310.0,101300.0,0.3608]
[1737329192136,0.410205,101340.0,101300.0,0.410224]
[1737329192324,0.049416,101320.0,101310.0,0.3608]
[1737329192635,0.53951732,101350.0,101310.0,0.3608]
[1737329192841,0.049415,101320.0,101300.0,0.410224]
[1737329193136,0.49011632,101330.0,101300.0,0.3608]
[1737329193335,0.53952732,101330.0,101290.0,0.3608]
[1737329193536,0.410206,101340.0,101320.0,0.049414]
[1737329193731,0.049406,101340.0,101320.0,0.410214]
[1737329194032,0.42003248,101350.0,101330.0,0.41021]
[1737329194239,0.00983148,101350.0,101340.0,0.774805]
[1737329194435,0.3608,101390.0,101340.0,0.7254]
[1737329194634,0.22931632,101400.0,101370.0,0.3608]
[1737329194829,0.049385,101380.0,101370.0,0.3608]
[1737329195132,0.15921816,101400.0,101370.0,0.410186]
[1737329195337,0.10984116,101400.0,101390.0,0.7216]
[1737329195724,0.10984116,101400.0,101390.0,1.070981]
[1737329195926,0.04935,101460.0,101420.0,0.049362]
[1737329196137,0.49011632,101480.0,101430.0,0.410161]
[1737329196438,0.12931632,101460.0,101420.0,0.3608]
[1737329196635,0.049358,101440.0,101420.0,0.3608]
[1737329196825,0.049358,101440.0,101430.0,0.3608]
[1737329197234,0.049348,101460.0,101430.0,0.410161]
[1737329197432,0.049352,101450.0,101430.0,0.3608]
[1737329197632,0.12931632,101460.0,101420.0,0.3608]
[1737329197935,0.049356,101440.0,101430.0,0.3608]
[1737329198137,0.049356,101440.0,101410.0,0.3608]
[1737329198138,0.049365,101430.0,101410.0,0.3608]
[1737329198327,0.049371,101410.0,101400.0,0.00056]
[1737329198527,0.049376,101400.0,101390.0,9.072e-05]
[1737329198937,0.53949232,101400.0,101390.0,9.072e-05]
[1737329199234,0.049376,101400.0,101390.0,9.072e-05]
[1737329199426,0.17869232,101400.0,101390.0,9.072e-05]
[1737329199631,0.17869232,101400.0,101340.0,0.00147974]
[1737329199632,0.83949232,101400.0,101340.0,0.00147974]
[1737329199833,0.17871632,101350.0,101340.0,0.00147974]
[1737329200327,0.53951632,101350.0,101340.0,7.4e-07]
[1737329200636,0.53951632,101350.0,101300.0,0.4608]
[1737329200836,0.04942,101310.0,101300.0,0.07470271]
[1737329201036,9.072e-05,101310.0,101300.0,0.43550271]
[1737329201235,0.04951072,101310.0,101300.0,0.07470271]
[1737329201932,0.41031072,101310.0,101300.0,0.07470271]
[1737329202141,0.17873632,101310.0,101300.0,0.07470271]
[1737329202335,0.53953632,101310.0,101300.0,0.07470271]
[1737329202536,0.53953632,101310.0,101270.0,0.36089216]
[1737329202840,0.049434,101280.0,101270.0,9.216e-05]
[1737329203037,0.04952472,101280.0,101270.0,9.216e-05]
[1737329203933,0.41032472,101280.0,101270.0,9.216e-05]
[1737329204531,0.049434,101280.0,101270.0,9.216e-05]
[1737329204732,0.04952472,101280.0,101270.0,9.216e-05]
[1737329205226,0.41032472,101280.0,101270.0,9.216e-05]
[1737329205430,0.410234,101280.0,101270.0,9.216e-05]
[1737329205636,0.410234,101280.0,101270.0,1.6e-07]
[1737329205834,0.049439,101270.0,101230.0,0.3608]
[1737329206036,0.17876332,101260.0,101230.0,0.3608]
[1737329206431,0.049459,101230.0,101220.0,0.3608]
[1737329206633,0.04955443,101230.0,101210.0,0.3608]
[1737329206834,0.12931632,101220.0,101200.0,0.4608]
[1737329207035,7.718e-05,101210.0,101200.0,0.4608]
[1737329207633,0.04954518,101210.0,101200.0,0.4608]
[1737329207828,0.41034518,101210.0,101200.0,0.1]
[1737329208330,0.04954518,101210.0,101200.0,0.1]
[1737329208529,0.410268,101210.0,101200.0,0.1]
[1737329208742,0.049478,101190.0,101180.0,0.00148215]
[1737329209040,0.53959432,101190.0,101180.0,0.00148215]
[1737329209338,0.049483,101180.0,101170.0,0.00010824]
[1737329209640,0.410283,101180.0,101170.0,0.00010824]
[1737329209842,0.410283,101180.0,101120.0,0.3608]
[1737329210033,0.049495,101160.0,101140.0,0.3608]
[1737329210233,0.049495,101160.0,101150.0,0.3608]
[1737329210747,0.49011632,101180.0,101150.0,0.410296]
[1737329210748,0.049484,101180.0,101150.0,0.410296]
[1737329210933,0.3608,101200.0,101140.0,0.49011632]
[1737329210934,0.00012021,101170.0,101160.0,0.53960832]
[1737329211247,0.049465,101220.0,101190.0,0.049476]
[1737329211437,0.049474,101200.0,101180.0,0.3608]
[1737329211640,0.12931632,101190.0,101170.0,0.3608]
[1737329211840,0.049474,101200.0,101180.0,0.3608]
[1737329212036,0.3608,101210.0,101190.0,0.3608]
[1737329212231,0.049468,101220.0,101200.0,0.410273]
[1737329212444,7.318e-05,101210.0,101190.0,0.3608]
[1737329212642,7.318e-05,101210.0,101200.0,0.3608]
[1737329213036,7.318e-05,101210.0,101200.0,0.410273]
[1737329213335,7.318e-05,101210.0,101200.0,0.3608]
[1737329214142,0.04954118,101210.0,101200.0,0.3608]
[1737329214338,7.318e-05,101210.0,101200.0,0.3608]
[1737329214843,7.318e-05,101210.0,101200.0,0.53958932]
[1737329215037,0.17876832,101250.0,101210.0,0.049466]
[1737329215236,0.049455,101240.0,101220.0,0.3608]
[1737329215437,0.17877532,101230.0,101220.0,0.3608]
[1737329215643,0.049467,101220.0,101200.0,0.3608]
[1737329215838,0.410255,101240.0,101210.0,0.410268]
[1737329216039,0.04955633,101230.0,101210.0,0.3608]
[1737329216550,0.04956033,101220.0,101210.0,0.3608]
[1737329216744,9.733e-05,101220.0,101210.0,0.3608]
[1737329216942,9.733e-05,101220.0,101210.0,0.410268]
[1737329217134,0.53955832,101270.0,101230.0,0.049457]
[1737329217340,0.17875832,101270.0,101250.0,0.3608]
[1737329217646,0.49975156,101270.0,101240.0,0.3608]
[1737329217944,0.049444,101260.0,101240.0,0.3608]
[1737329218638,0.049449,101250.0,101220.0,0.3608]
[1737329218845,0.49975156,101270.0,101240.0,0.410251]
[1737329219143,0.05907724,101270.0,101250.0,0.3608]
[1737329219341,0.049442,101270.0,101250.0,0.3608]
[1737329219541,0.17875832,101270.0,101250.0,0.3608]
[1737329219736,0.12931632,101270.0,101240.0,0.3608]
[1737329219942,0.17875532,101270.0,101250.0,0.3608]
[1737329220343,0.049439,101270.0,101250.0,0.3608]
[1737329220540,0.12931632,101270.0,101250.0,0.3608]
[1737329220742,0.17875532,101270.0,101250.0,0.3608]
[1737329220943,0.049444,101260.0,101250.0,0.3608]
[1737329221243,0.049449,101250.0,101240.0,0.27076001]
[1737329221449,0.17876532,101250.0,101230.0,0.3608]
[1737329221841,0.53955532,101270.0,101240.0,0.3608]
[1737329222050,0.049454,101240.0,101230.0,0.3608]
[1737329222248,0.049444,101260.0,101230.0,0.410258]
[1737329222544,0.049447,101260.0,101240.0,0.3608]
[1737329222742,0.049447,101260.0,101240.0,0.410252]
[1737329222942,0.049439,101270.0,101250.0,0.049446]
[1737329223243,0.049439,101270.0,101240.0,0.3608]
[1737329223244,0.53955532,101270.0,101240.0,0.3608]
[1737329223440,0.049454,101240.0,101230.0,0.3608]
[1737329223638,0.049454,101240.0,101220.0,0.3608]
[1737329223838,0.49011632,101250.0,101220.0,0.3608]
[1737329224049,0.04947,101210.0,101180.0,1.22679033]
[1737329224252,0.12931632,101210.0,101180.0,1.22679033]
[1737329224456,0.049478,101190.0,101180.0,0.00160833]
[1737329225851,0.049493,101160.0,101150.0,0.3608]
[1737329226048,0.049493,101160.0,101140.0,0.3608]
[1737329226247,0.049493,101160.0,101140.0,0.410301]
[1737329227455,0.3608,101160.0,101130.0,0.3608]
[1737329227666,0.049501,101150.0,101130.0,0.3608]
[1737329227960,0.17881732,101150.0,101130.0,0.410308]
[1737329228154,0.13893802,101170.0,101140.0,0.3608]
[1737329228355,0.0096217,101170.0,101160.0,0.049493]
[1737329228547,0.04949,101170.0,101150.0,0.410298]
[1737329229147,0.49011632,101180.0,101150.0,0.3608]
[1737329229352,0.12931632,101180.0,101150.0,0.3608]
[1737329229550,0.049493,101160.0,101150.0,0.3608]
[1737329230246,0.17880932,101160.0,101150.0,0.3608]
[1737329230559,0.049498,101150.0,101140.0,0.3608]
[1737329230751,0.049498,101150.0,101130.0,0.410307]
[1737329231559,0.53961032,101160.0,101140.0,0.3608]
[1737329231959,0.53961032,101160.0,101130.0,0.410307]
[1737329232256,0.53961032,101160.0,101110.0,0.36087668]
[1737329232257,0.17881932,101140.0,101110.0,0.36087668]
[1737329232462,0.17881932,101140.0,101120.0,0.049511]
[1737329232754,0.49011632,101140.0,101110.0,7.668e-05]
[1737329232956,0.049512,101120.0,101110.0,7.668e-05]
[1737329233162,0.53962832,101120.0,101110.0,7.668e-05]
[1737329233350,0.53962832,101120.0,101110.0,0.01555492]
[1737329233550,0.53962832,101120.0,101110.0,0.01547824]
[1737329233768,0.049517,101110.0,101100.0,0.09992332]
[1737329234053,0.410317,101110.0,101100.0,0.09992332]
[1737329234254,0.049517,101110.0,101100.0,0.09992332]
[1737329234457,0.410317,101110.0,101100.0,0.09992332]
[1737329234762,0.049517,101110.0,101100.0,0.09992332]
[1737329235057,0.049513,101120.0,101100.0,0.14944532]
[1737329235249,0.049513,101120.0,101100.0,0.51024532]
[1737329235552,0.17882032,101140.0,101110.0,0.410314]
[1737329235950,0.49011632,101140.0,101110.0,0.3608]
[1737329236248,0.049512,101120.0,101100.0,0.51024432]
[1737329236756,0.49011632,101130.0,101100.0,0.46072332]
[1737329236958,0.049517,101110.0,101100.0,0.09992332]
[1737329237157,0.53963332,101110.0,101100.0,0.09992332]
[1737329237358,0.410317,101110.0,101100.0,0.09992332]
[1737329237554,0.49011632,101130.0,101100.0,0.46072332]
[1737329237757,0.049514,101120.0,101100.0,0.51024332]
[1737329238057,0.49011632,101130.0,101100.0,0.46072332]
[1737329238253,0.410309,101130.0,101110.0,0.410315]
[1737329238449,0.00961243,101140.0,101120.0,0.3608]
[1737329238659,0.049508,101130.0,101120.0,0.3608]
[1737329238854,0.049504,101140.0,101120.0,0.41031]
[1737329239055,0.49959302,101150.0,101110.0,0.3608]
[1737329239251,0.049512,101120.0,101100.0,0.51024432]
[1737329239446,0.049517,101110.0,101100.0,0.09992332]
[1737329239854,0.17883332,101110.0,101100.0,0.09992332]
[1737329240060,0.53963332,101110.0,101100.0,0.06564322]
[1737329240457,0.049527,101090.0,101080.0,0.00148362]
[1737329241549,0.049539,101070.0,101050.0,0.410346]
[1737329241755,0.410328,101090.0,101060.0,0.3608]
[1737329241959,0.54935706,101110.0,101080.0,0.3608]
[1737329242159,0.049532,101080.0,101070.0,0.3608]
[1737329242362,0.049528,101090.0,101070.0,0.410335]
[1737329242861,0.049532,101080.0,101060.0,0.3608]
[1737329243053,0.049546,101060.0,101040.0,0.410351]
[1737329243362,0.049546,101060.0,101030.0,0.4041525]
[1737329243363,0.49011632,101050.0,101030.0,0.4041525]
[1737329243558,0.049552,101040.0,101030.0,0.4041525]
[1737329243861,0.049557,101030.0,101020.0,0.01530885]
[1737329244061,0.049552,101040.0,101020.0,0.41045838]
[1737329244260,0.17887332,101030.0,101020.0,0.02488179]
[1737329244662,0.05905457,101040.0,101020.0,0.43524179]
[1737329244967,0.05905457,101040.0,101020.0,0.02488179]
[1737329244968,0.049557,101030.0,101020.0,0.02488179]
[1737329245156,0.17887332,101030.0,101020.0,0.02488179]
[1737329245359,0.00950157,101040.0,101020.0,0.02488179]
[1737329245360,0.05905457,101040.0,101020.0,0.45043952]
[1737329245659,0.05905457,101040.0,101030.0,0.3608]
[1737329245660,0.00950157,101040.0,101030.0,0.3608]
[1737329245866,0.17886832,101040.0,101030.0,0.3608]
[1737329246061,0.53966832,101040.0,101030.0,0.04027446]
[1737329246560,0.049561,101020.0,101010.0,0.37599773]
[1737329246758,0.049561,101020.0,101010.0,0.01519773]
[1737329247170,0.49011632,101040.0,101010.0,0.41628024]